bitfinex/quotes_SOLUSD_20230110
["timestamp","ask_amount","ask_price","bid_price","bid_amount"]
[1673370699230,20.0,16.163,16.15,57.10097543]
[1673370699447,20.0,16.163,16.151,68.37]
[1673370699850,20.0,16.163,16.152,10.87097543]
[1673370700171,20.0,16.163,16.153,1.92]
[1673370700382,20.0,16.163,16.152,10.87097543]
[1673370701968,20.0,16.163,16.153,1.92]
[1673370702582,20.0,16.163,16.154,10.87097543]
[1673370703329,20.0,16.164,16.155,0.96]
[1673370703737,20.0,16.164,16.154,10.87097543]
[1673370703943,20.0,16.164,16.149,66.46]
[1673370704169,20.0,16.164,16.151,12.79097543]
[1673370704386,20.0,16.164,16.151,10.87097543]
[1673370704812,135.2012,16.164,16.151,10.87097543]
[1673370706798,135.2012,16.164,16.152,1.92]
[1673370707012,135.2012,16.164,16.151,10.87097543]
[1673370707214,135.2012,16.164,16.152,10.87097543]
[1673370711837,135.2012,16.164,16.147,46.46]
[1673370712170,135.2012,16.164,16.151,10.87097543]
[1673370712488,20.0,16.162,16.147,57.33097543]
[1673370713309,63.42,16.161,16.15,26.23]
[1673370713531,46.25,16.16,16.141,46.48]
[1673370713739,46.25,16.16,16.14,73.02]
[1673370713740,20.0,16.158,16.14,73.02]
[1673370713965,20.0,16.158,16.14,26.54]
[1673370714148,46.43,16.157,16.14,26.54]
[1673370714364,17.0,16.156,16.138,46.49]
[1673370714695,20.0,16.154,16.137,117.9816]
[1673370714895,20.0,16.154,16.137,180.2316]
[1673370715122,46.44,16.153,16.137,117.9816]
[1673370715639,20.0,16.152,16.136,46.49]
[1673370715857,20.0,16.152,16.137,64.17]
[1673370716075,46.45,16.151,16.137,1.92]
[1673370716388,20.0,16.15,16.137,1.92]
[1673370716600,20.0,16.15,16.137,21.92]
[1673370716911,20.0,16.15,16.137,84.17]
[1673370717228,20.0,16.15,16.137,82.25]
[1673370717435,20.0,16.15,16.137,20.0]
[1673370718071,20.0,16.148,16.137,20.0]
[1673370718468,20.0,16.148,16.138,20.0]
[1673370718800,20.0,16.148,16.135,46.5]
[1673370719011,20.0,16.148,16.136,20.0]
[1673370719222,20.0,16.148,16.132,46.5]
[1673370719418,165.6036,16.147,16.132,46.5]
[1673370719628,20.0,16.146,16.131,47.47]
[1673370719835,139.7457,16.146,16.131,47.47]
[1673370720257,139.7457,16.146,16.132,11.83097543]
[1673370720466,139.7457,16.146,16.133,0.96]
[1673370720696,139.7457,16.146,16.134,0.96]
[1673370723515,139.7457,16.146,16.134,47.46]
[1673370723727,139.7457,16.146,16.134,0.96]
[1673370724574,139.7457,16.146,16.133,11.83097543]
[1673370724575,139.7457,16.146,16.133,10.87097543]
[1673370724779,186.2057,16.146,16.131,46.51]
[1673370725107,46.47,16.145,16.13,37.32097543]
[1673370725301,20.0,16.144,16.131,20.0]
[1673370725505,20.0,16.144,16.131,30.87097543]
[1673370725721,46.47,16.143,16.131,20.0]
[1673370725931,66.47,16.144,16.131,30.87097543]
[1673370726140,20.0,16.144,16.131,30.87097543]
[1673370726357,20.0,16.144,16.132,1.92]
[1673370726571,139.7457,16.146,16.132,48.42]
[1673370727289,0.96,16.145,16.132,0.96]
[1673370730682,139.7457,16.146,16.132,0.96]
[1673370730880,139.7457,16.146,16.133,46.5]
[1673370731207,139.7457,16.146,16.132,20.96]
[1673370731414,139.7457,16.146,16.133,46.5]
[1673370731619,139.7457,16.146,16.132,47.46]
[1673370732456,139.7457,16.146,16.133,0.96]
[1673370732664,139.7457,16.146,16.134,0.96]
[1673370734255,139.7457,16.146,16.133,0.96]
[1673370734468,139.7457,16.146,16.134,0.96]
[1673370736567,139.7457,16.146,16.133,0.96]
[1673370736782,139.7457,16.146,16.132,46.5]
[1673370737090,119.7457,16.146,16.133,0.96]
[1673370737298,119.7457,16.146,16.134,20.96]
[1673370737511,119.7457,16.146,16.135,0.96]
[1673370737826,119.7457,16.146,16.134,47.46]
[1673370737827,20.0,16.145,16.134,0.96]
[1673370741401,66.44,16.154,16.135,55.5712]
[1673370741597,316.88,16.17,16.141,62.25]
[1673370741598,46.43,16.157,16.141,62.25]
[1673370741921,211.6,16.17,16.15,26.32]
[1673370741922,46.42,16.163,16.15,26.32]
[1673370742369,20.0,16.162,16.151,63.26097086]
[1673370742565,46.42,16.163,16.151,74.13194629]
[1673370742775,46.42,16.163,16.152,10.87097543]
[1673370742991,46.4,16.168,16.152,10.87097543]
[1673370743191,0.96,16.163,16.151,63.26097086]
[1673370743405,20.96,16.163,16.151,63.26097086]
[1673370743630,20.0,16.163,16.151,63.26097086]
[1673370743843,20.0,16.167,16.151,63.26097086]
[1673370744472,46.41,16.166,16.151,63.26097086]
[1673370744781,20.0,16.163,16.151,63.26097086]
[1673370744997,20.96,16.163,16.151,63.26097086]
[1673370745619,20.96,16.163,16.15,26.32]
[1673370746451,20.96,16.163,16.151,10.87097543]
[1673370747399,20.0,16.161,16.151,10.87097543]
[1673370747930,0.96,16.16,16.151,10.87097543]
[1673370748256,0.96,16.16,16.15,26.32]
[1673370750244,0.96,16.16,16.151,10.87097543]
[1673370752562,115.7696,16.162,16.151,10.87097543]
[1673370753636,20.0,16.161,16.151,10.87097543]
[1673370753956,20.0,16.161,16.15,10.87097543]
[1673370756051,115.7696,16.162,16.15,10.87097543]
[1673370756262,20.0,16.161,16.15,10.87097543]
[1673370769083,115.7696,16.162,16.15,10.87097543]
[1673370769397,115.7696,16.162,16.15,37.19097543]
[1673370769831,115.7696,16.162,16.151,10.87097543]
[1673370773689,115.7696,16.162,16.151,30.87097543]
[1673370773900,115.7696,16.162,16.151,10.87097543]
[1673370774111,115.7696,16.162,16.152,10.87097543]
[1673370776020,46.41,16.166,16.153,42.7077213]
[1673370776333,46.4,16.169,16.154,12.79097543]
[1673370776547,158.3042,16.171,16.154,12.79097543]
[1673370776758,158.3042,16.171,16.156,20.0]
[1673370777070,158.3042,16.171,16.157,54.53869673]
[1673370777258,158.3042,16.171,16.157,74.53869673]
[1673370777474,111.9142,16.171,16.158,10.87097543]
[1673370777687,111.4142,16.171,16.159,20.0]
[1673370777920,46.4,16.17,16.16,20.0]
[1673370778104,46.4,16.17,16.16,30.87097543]
[1673370778314,46.4,16.17,16.16,10.87097543]
[1673370780548,46.4,16.17,16.146,118.8839]
[1673370780549,17.0,16.169,16.146,118.8839]
[1673370780737,20.0,16.168,16.151,20.0]
[1673370780950,66.4,16.168,16.151,20.0]
[1673370781160,0.96,16.167,16.151,30.87097543]
[1673370781907,46.41,16.166,16.151,30.87097543]
[1673370782326,20.0,16.165,16.151,30.87097543]
[1673370782860,165.4151,16.164,16.151,30.87097543]
[1673370783682,0.96,16.163,16.151,30.87097543]
[1673370785046,46.4,16.167,16.151,30.87097543]
[1673370785258,46.39,16.171,16.152,68.37]
[1673370785491,46.38,16.176,16.152,215.20100099]
[1673370785805,20.0,16.172,16.153,120.55368797]
[1673370785991,20.0,16.172,16.155,20.0]
[1673370786430,20.0,16.172,16.157,20.0]
[1673370786638,20.0,16.172,16.158,20.0]
[1673370786850,20.0,16.172,16.159,20.0]
[1673370787053,20.0,16.172,16.159,30.87097543]
[1673370787373,20.0,16.175,16.159,30.87097543]
[1673370787374,46.38,16.174,16.16,30.87097543]
[1673370787583,0.96,16.172,16.16,10.87097543]
[1673370787778,20.96,16.172,16.16,10.87097543]
[1673370788949,6.038862,16.177,16.161,46.42]
[1673370789165,6.038862,16.177,16.162,20.0]
[1673370789359,6.038862,16.177,16.162,30.87097543]
[1673370789569,6.038862,16.177,16.163,57.29097543]
[1673370789800,6.038862,16.177,16.164,20.96]
[1673370790195,6.038862,16.177,16.17,26.23]
[1673370792209,6.038862,16.177,16.162,46.42]
[1673370792419,17.0,16.176,16.162,20.0]
[1673370792739,20.96,16.175,16.161,46.42]
[1673370793152,0.96,16.175,16.162,10.87097543]
[1673370793353,20.96,16.175,16.163,20.0]
[1673370793567,20.96,16.175,16.162,10.87097543]
[1673370793788,20.96,16.175,16.163,10.87097543]
[1673370794206,20.96,16.175,16.163,57.29097543]
[1673370794526,20.96,16.175,16.162,46.42]
[1673370794733,20.96,16.175,16.161,57.29097543]
[1673370794945,20.96,16.175,16.163,10.87097543]
[1673370795883,20.96,16.175,16.163,57.29097543]
[1673370796220,20.96,16.175,16.164,10.87097543]
[1673370797687,0.96,16.175,16.164,10.87097543]
[1673370797874,26.038862,16.177,16.164,10.87097543]
[1673370798509,17.0,16.176,16.164,10.87097543]
[1673370799159,26.038862,16.177,16.164,10.87097543]
[1673370801366,17.0,16.176,16.164,10.87097543]
[1673370801680,20.0,16.175,16.164,10.87097543]
[1673370801992,17.0,16.176,16.164,10.87097543]
[1673370802218,26.038862,16.177,16.165,66.41]
[1673370802219,6.038862,16.177,16.165,66.41]
[1673370802639,6.038862,16.177,16.167,20.0]
[1673370802958,6.038862,16.177,16.168,10.87097543]
[1673370803160,6.038862,16.177,16.169,20.0]
[1673370803582,6.038862,16.177,16.171,20.0]
[1673370803792,6.038862,16.177,16.17,83.33097543]
[1673370804325,6.038862,16.177,16.17,36.93097543]
[1673370804526,6.038862,16.177,16.17,10.87097543]
[1673370805567,6.038862,16.177,16.169,20.0]
[1673370805896,47.34,16.176,16.168,10.87097543]
[1673370806116,20.0,16.175,16.164,49.04612828]
[1673370806830,0.96,16.174,16.164,49.04612828]
[1673370808001,20.0,16.176,16.165,20.0]
[1673370808197,0.96,16.175,16.165,20.0]
[1673370808408,0.96,16.175,16.163,20.0]
[1673370811050,0.96,16.175,16.162,57.29097543]
[1673370811367,17.96,16.175,16.162,57.29097543]
[1673370811577,20.0,16.174,16.162,57.29097543]
[1673370811776,20.0,16.174,16.162,10.87097543]
[1673370812102,0.96,16.173,16.162,10.87097543]
[1673370812305,114.6954,16.173,16.162,10.87097543]
[1673370812626,40.0,16.172,16.157,108.68]
[1673370812817,40.0,16.172,16.156,46.44]
[1673370812818,169.4203,16.172,16.156,46.44]
[1673370813155,47.35,16.171,16.156,46.44]
[1673370813483,20.0,16.169,16.155,10.87097543]
[1673370813978,20.0,16.169,16.152,20.0]
[1673370814182,66.4,16.169,16.153,46.44]
[1673370814411,66.4,16.169,16.154,20.0]
[1673370814835,66.4,16.169,16.155,46.44]
[1673370819340,17.0,16.168,16.154,20.0]
[1673370820497,17.0,16.168,16.153,46.44]
[1673370820709,17.0,16.168,16.154,20.0]
[1673370822300,17.0,16.168,16.153,46.44]
[1673370822510,66.4,16.169,16.153,46.44]
[1673370822722,20.0,16.169,16.153,46.44]
[1673370822932,20.0,16.169,16.154,20.0]
[1673370823560,20.0,16.169,16.155,46.44]
[1673370824604,63.4,16.168,16.153,46.44]
[1673370824826,20.0,16.167,16.153,46.44]
[1673370825014,17.0,16.166,16.152,46.45]
[1673370825224,126.3517,16.166,16.151,46.45]
[1673370825434,20.0,16.165,16.151,46.45]
[1673370826068,20.0,16.163,16.151,46.45]
[1673370826495,115.0611,16.164,16.151,46.45]
[1673370828606,115.0611,16.164,16.15,26.09]
[1673370828828,0.96,16.163,16.15,26.09]
[1673370829034,0.96,16.163,16.151,46.45]
[1673370829223,0.96,16.163,16.149,46.46]
[1673370829434,0.96,16.163,16.15,40.0]
[1673370830077,109.3517,16.166,16.151,46.45]
[1673370830288,46.39,16.172,16.16,25.97]
[1673370830490,6.038862,16.177,16.16,25.97]
[1673370830491,108.7501,16.174,16.16,25.97]
[1673370830689,108.7501,16.174,16.161,46.42]
[1673370830897,113.2354,16.173,16.161,46.42]
[1673370831543,0.96,16.172,16.161,46.42]
[1673370832074,108.7501,16.174,16.161,46.42]
[1673370832401,6.038862,16.177,16.162,21.92]
[1673370832804,6.038862,16.177,16.163,46.42]
[1673370833342,6.038862,16.177,16.162,46.42]
[1673370833545,6.038862,16.177,16.161,46.42]
[1673370833758,17.0,16.176,16.161,46.42]
[1673370834070,6.038862,16.177,16.161,46.42]
[1673370835959,0.96,16.176,16.161,46.42]
[1673370838259,20.0,16.175,16.161,46.42]
[1673370838680,0.96,16.174,16.161,46.42]
[1673370839835,6.038862,16.177,16.162,20.96]
[1673370840363,6.038862,16.177,16.163,46.42]
[1673370840908,6.038862,16.177,16.17,26.08]
[1673370841423,6.038862,16.177,16.171,46.39]
[1673370843213,6.038862,16.177,16.167,20.0]
[1673370843441,6.038862,16.177,16.168,20.0]
[1673370843620,6.038862,16.177,16.168,66.4]
[1673370844040,6.038862,16.177,16.169,10.87081766]
[1673370844359,6.038862,16.177,16.17,20.0]
[1673370844565,6.038862,16.177,16.17,66.4]
[1673370844787,6.038862,16.177,16.171,10.87081766]
[1673370845213,6.038862,16.177,16.172,46.39]
[1673370845616,6.038862,16.177,16.173,10.87081766]
[1673370849937,6.038862,16.177,16.171,46.39]
[1673370850151,6.038862,16.177,16.172,10.87081766]
[1673370852143,6.038862,16.177,16.173,20.0]
[1673370852689,6.038862,16.177,16.174,10.87081766]
[1673370860659,6.038862,16.177,16.17,46.05]
[1673370860876,6.038862,16.177,16.17,20.0]
[1673370861192,0.96,16.176,16.169,20.0]
[1673370863820,0.96,16.176,16.164,46.41]
[1673370864132,66.38,16.175,16.16,83.27081766]
[1673370864343,20.96,16.174,16.161,20.0]
[1673370864531,20.96,16.174,16.161,66.42]
[1673370864742,20.96,16.174,16.161,77.29081766]
[1673370865075,20.0,16.172,16.161,77.29081766]
[1673370866218,20.0,16.172,16.161,57.29081766]
[1673370866425,0.96,16.171,16.161,57.29081766]
[1673370867918,20.0,16.172,16.162,20.0]
[1673370868853,20.0,16.172,16.161,57.29081766]
[1673370869361,20.0,16.172,16.159,46.43]
[1673370869583,20.0,16.172,16.16,20.0]
[1673370869802,20.0,16.17,16.16,20.0]
[1673370870332,0.96,16.169,16.16,20.0]
[1673370878093,0.96,16.169,16.16,66.42]
[1673370879880,0.96,16.169,16.16,20.0]
[1673370880097,0.96,16.169,16.159,20.0]
[1673370880518,0.96,16.169,16.158,20.0]
[1673370880941,0.96,16.169,16.159,46.43]
[1673370881153,0.96,16.169,16.16,20.0]
[1673370881899,0.96,16.169,16.159,20.0]
[1673370882528,20.0,16.17,16.159,20.0]
[1673370882718,20.0,16.17,16.16,46.42]
[1673370882929,20.0,16.172,16.16,46.42]
[1673370884309,20.0,16.172,16.161,20.0]
[1673370884519,20.0,16.172,16.16,46.42]
[1673370885468,20.0,16.172,16.159,30.87081766]
[1673370885680,20.0,16.172,16.16,46.42]
[1673370889877,20.0,16.186,16.16,46.42]
[1673370890094,98.41925743,16.211,16.16,46.42]
[1673370890095,109.5517,16.2,16.174,155.61363217]
[1673370890285,109.5517,16.2,16.18,26.05]
[1673370890286,218.1197,16.2,16.18,26.05]
[1673370890492,244.1697,16.2,16.18,26.05]
[1673370890696,46.31,16.199,16.181,46.36]
[1673370890914,20.0,16.198,16.174,66.38]
[1673370891233,20.0,16.198,16.175,40.96]
[1673370891442,20.0,16.196,16.175,87.34]
[1673370891668,20.0,16.196,16.176,11.83081766]
[1673370891862,20.0,16.196,16.177,40.0]
[1673370892073,46.32,16.195,16.177,20.0]
[1673370892301,46.32,16.195,16.178,66.37]
[1673370892513,46.32,16.195,16.179,20.0]
[1673370892828,46.32,16.195,16.18,20.0]
[1673370893229,0.96,16.194,16.18,20.0]
[1673370894909,46.32,16.197,16.181,0.96]
[1673370895116,46.32,16.197,16.182,20.0]
[1673370895324,46.32,16.197,16.181,46.36]
[1673370895554,46.32,16.197,16.182,20.0]
[1673370895763,46.32,16.197,16.181,46.36]
[1673370896081,20.0,16.196,16.181,46.36]
[1673370896697,0.96,16.195,16.181,46.36]
[1673370897449,17.96,16.195,16.181,46.36]
[1673370900083,64.28,16.195,16.181,46.36]
[1673370900272,20.0,16.194,16.178,46.37]
[1673370900602,20.0,16.194,16.179,20.0]
[1673370900603,46.33,16.194,16.179,20.0]
[1673370900795,109.6622,16.193,16.179,30.87081766]
[1673370901003,109.6622,16.193,16.18,46.37]
[1673370903343,109.6622,16.193,16.18,72.33]
[1673370904603,46.33,16.192,16.18,25.96]
[1673370905123,109.6622,16.193,16.18,25.96]
[1673370905536,37.0,16.192,16.18,25.96]
[1673370905741,83.33,16.192,16.179,20.0]
[1673370905969,110.5541,16.191,16.177,20.0]
[1673370906289,110.5541,16.191,16.178,20.0]
[1673370906499,110.5541,16.191,16.179,20.0]
[1673370907740,110.5541,16.191,16.176,46.38]
[1673370907954,92.36,16.19,16.172,46.39]
[1673370908158,294.66,16.19,16.169,10.87081766]
[1673370908382,109.36,16.19,16.169,10.87081766]
[1673370908589,20.0,16.189,16.17,46.4]
[1673370908802,17.0,16.188,16.17,46.4]
[1673370909011,20.0,16.187,16.171,20.0]
[1673370909543,155.2864,16.186,16.171,20.0]
[1673370909766,0.96,16.185,16.171,30.87081766]
[1673370911635,108.9364,16.186,16.172,0.96]
[1673370911840,108.9364,16.186,16.173,0.96]
[1673370912050,20.0,16.199,16.173,22.70163532]
[1673370912051,46.32,16.195,16.173,22.70163532]
[1673370912270,116.887,16.192,16.175,20.0]
[1673370912470,116.887,16.192,16.176,20.96]
[1673370912693,116.887,16.192,16.177,20.0]
[1673370912898,116.887,16.192,16.177,30.87081766]
[1673370913099,116.887,16.192,16.178,46.37]
[1673370913314,26.02,16.19,16.17,25.84]
[1673370913539,20.0,16.189,16.177,10.87081766]
[1673370913962,20.0,16.189,16.173,20.0]
[1673370914153,0.96,16.188,16.173,20.0]
[1673370914362,0.96,16.188,16.174,46.38]
[1673370914678,0.96,16.188,16.175,20.96]
[1673370914913,0.96,16.188,16.175,11.83081766]
[1673370915123,0.96,16.188,16.176,10.87081766]
[1673370916400,20.0,16.187,16.172,46.39]
[1673370916800,20.0,16.187,16.171,46.39]
[1673370917554,0.96,16.186,16.172,20.0]
[1673370917737,20.0,16.187,16.172,30.87081766]
[1673370918073,66.34,16.189,16.173,68.13163532]
[1673370918280,66.34,16.189,16.174,20.0]
[1673370918482,66.34,16.189,16.173,46.39]
[1673370918688,0.96,16.188,16.173,46.39]
[1673370919123,0.96,16.188,16.173,90.91889949]
[1673370920172,46.35,16.187,16.173,44.52889949]
[1673370920389,17.96,16.186,16.168,46.4]
[1673370920579,37.96,16.186,16.169,20.0]
[1673370920791,46.35,16.185,16.169,20.0]
[1673370921026,17.0,16.184,16.169,20.0]
[1673370921329,319.219,16.184,16.163,46.42]
[1673370921550,26.02,16.18,16.163,46.42]
[1673370921759,37.0,16.179,16.161,57.29081766]
[1673370921948,83.37,16.179,16.162,10.87081766]
[1673370922160,20.96,16.178,16.162,10.87081766]
[1673370922365,110.4445,16.182,16.162,10.87081766]
[1673370922570,110.4445,16.182,16.17,26.02]
[1673370923001,110.4445,16.182,16.171,57.26081766]
[1673370923860,110.4445,16.182,16.172,10.87081766]
[1673370924382,20.0,16.187,16.173,63.39]
[1673370924577,20.0,16.183,16.173,63.39]
[1673370924997,20.0,16.187,16.173,63.39]
[1673370925209,20.0,16.183,16.173,63.39]
[1673370925750,20.0,16.187,16.173,63.39]
[1673370926157,20.0,16.19,16.173,116.95727121]
[1673370926465,20.0,16.19,16.174,68.3]
[1673370926683,20.0,16.19,16.174,46.38]
[1673370926909,46.34,16.188,16.173,34.23187008]
[1673370927307,20.96,16.187,16.171,46.39]
[1673370927635,20.96,16.187,16.171,105.34368095]
[1673370928695,20.96,16.187,16.171,152.32949377]
[1673370929413,20.96,16.187,16.172,17.0]
[1673370929624,20.96,16.187,16.171,152.32949377]
[1673370929843,17.0,16.186,16.171,152.32949377]
[1673370930051,323.6568,16.192,16.171,152.32949377]
[1673370930052,113.6686,16.218,16.188,20.96]
[1673370930264,113.6686,16.209,16.19,45.77]
[1673370930470,20.0,16.208,16.19,25.77]
[1673370930686,66.29,16.208,16.191,46.33]
[1673370930987,20.0,16.208,16.192,187.97988326]
[1673370931197,20.0,16.208,16.193,17.96]
[1673370931406,46.26,16.216,16.193,231.30988326]
[1673370931612,20.0,16.215,16.194,263.52092034]
[1673370931848,20.0,16.215,16.195,37.0]
[1673370932045,46.27,16.214,16.195,276.24051639]
[1673370932246,20.0,16.213,16.196,187.16536539]
[1673370932467,20.0,16.213,16.197,20.0]
[1673370932676,46.27,16.212,16.197,207.16536539]
[1673370932892,20.0,16.211,16.198,204.16536539]
[1673370933107,20.0,16.211,16.198,84.49185474]
[1673370933309,46.28,16.21,16.199,73.62103708]
[1673370934049,20.0,16.209,16.183,46.36]
[1673370934268,131.6217,16.209,16.192,10.87081766]
[1673370934464,46.29,16.208,16.186,51.39364595]
[1673370934676,20.0,16.207,16.188,20.0]
[1673370934879,20.0,16.207,16.189,20.0]
[1673370935106,20.0,16.2,16.188,44.39369018]
[1673370935302,20.0,16.199,16.189,10.87081766]
[1673370942263,20.0,16.199,16.19,17.0]
[1673370942696,20.0,16.199,16.191,10.87081766]
[1673370942894,20.0,16.202,16.191,10.87081766]
[1673370942895,66.29,16.208,16.191,57.20081766]
[1673370943217,20.0,16.204,16.192,75.26450784]
[1673370943426,20.0,16.204,16.193,17.0]
[1673370943639,20.0,16.204,16.193,74.20081766]
[1673370943840,20.0,16.204,16.194,10.87081766]
[1673370944054,20.0,16.204,16.194,21.74163532]
[1673370944268,20.0,16.204,16.195,17.0]
[1673370944587,20.0,16.204,16.196,10.87081766]
[1673370944905,20.0,16.204,16.197,17.0]
[1673370946039,20.0,16.204,16.197,27.87081766]
[1673370946249,20.0,16.208,16.197,27.87081766]
[1673370947962,20.0,16.208,16.197,10.87081766]
[1673370948355,66.29,16.208,16.192,51.39364595]
[1673370948562,66.29,16.208,16.19,26.05]
[1673370949629,66.29,16.208,16.187,46.35]
[1673370950032,66.29,16.208,16.189,20.0]
[1673370950567,66.29,16.208,16.189,66.34]
[1673370951105,66.29,16.208,16.19,17.0]
[1673370951939,66.29,16.208,16.191,10.87081766]
[1673370952154,66.29,16.208,16.192,17.0]
[1673370955834,66.29,16.208,16.19,26.0]
[1673370956463,251.59,16.208,16.19,26.0]
[1673370957312,66.29,16.208,16.19,26.0]
[1673370957495,251.59,16.208,16.19,26.0]
[1673370958126,66.29,16.208,16.19,36.87081766]
[1673370958337,66.29,16.208,16.191,63.34]
[1673370962642,66.29,16.208,16.19,36.87081766]
[1673370963611,66.29,16.208,16.191,46.34]
[1673370963826,20.0,16.208,16.192,37.0]
[1673370964349,20.0,16.208,16.193,46.33]
[1673370964559,20.0,16.208,16.194,17.0]
[1673370965376,20.0,16.208,16.193,46.33]
[1673370965821,20.0,16.208,16.192,66.33]
[1673370966031,20.0,16.208,16.192,20.0]
[1673370966430,20.0,16.208,16.193,46.33]
[1673370966645,20.0,16.208,16.194,20.0]
[1673370966858,20.0,16.208,16.194,30.87081766]
[1673370967075,20.0,16.208,16.195,57.19081766]
[1673370967288,20.0,16.208,16.196,20.0]
[1673370967492,20.0,16.208,16.196,37.0]
[1673370968112,131.6217,16.209,16.196,37.0]
[1673370968332,116.822,16.21,16.196,47.87081766]
[1673370968547,116.822,16.21,16.197,68.24]
[1673370968748,116.822,16.21,16.198,20.0]
[1673370968953,116.822,16.21,16.198,118.3521938]
[1673370969162,20.0,16.217,16.199,124.11815028]
[1673370969600,20.0,16.213,16.2,20.0]
[1673370969796,20.0,16.213,16.2,37.0]
[1673370970007,20.0,16.213,16.2,63.31]
[1673370970536,20.0,16.213,16.199,20.0]
[1673370972758,20.0,16.211,16.196,46.32]
[1673370972943,20.0,16.211,16.194,106.87404352]
[1673370973156,46.28,16.21,16.194,60.54404352]
[1673370973577,20.0,16.209,16.194,60.54404352]
[1673370973805,136.9258,16.209,16.194,60.54404352]
[1673370974335,46.29,16.208,16.194,60.54404352]
[1673370974521,20.0,16.207,16.194,60.54404352]
[1673370975190,115.9628,16.206,16.194,60.54404352]
[1673370975405,20.0,16.205,16.194,60.54404352]
[1673370976252,115.9628,16.206,16.194,60.54404352]
[1673370976673,20.0,16.205,16.195,17.0]
[1673370976980,115.9628,16.206,16.195,17.0]
[1673370977199,115.9628,16.206,16.196,20.0]
[1673370977387,115.9628,16.206,16.197,17.0]
[1673370978350,115.9628,16.206,16.196,20.0]
[1673370978662,20.0,16.205,16.196,20.0]
[1673370978870,115.9628,16.206,16.196,20.0]
[1673370979489,20.0,16.205,16.196,20.0]
[1673370979697,20.0,16.205,16.197,17.0]
[1673370979922,115.9628,16.206,16.197,17.0]
[1673370985286,20.0,16.205,16.197,17.0]
[1673370985601,46.27,16.214,16.198,20.0]
[1673370985808,66.27,16.215,16.198,40.0]
[1673370986030,66.27,16.215,16.2,20.0]
[1673370986031,115.9036,16.213,16.2,20.0]
[1673370986426,20.0,16.212,16.2,47.87081766]
[1673370987373,20.0,16.212,16.195,20.0]
[1673370987587,51.76840235,16.225,16.2,10.87081766]
[1673370987797,51.76840235,16.225,16.21,130.0]
[1673370987798,129.6594,16.225,16.21,130.0]
[1673370988004,129.6594,16.225,16.211,20.0]
[1673370988214,129.6594,16.225,16.211,77.15081766]
[1673370988419,129.6594,16.225,16.212,10.87081766]
[1673370988648,129.6594,16.225,16.213,20.0]